[Event "Late-Titled-Tuesday-Blitz-June-18-2024"]
[Site "Chess.com"]
[Date "2024.06.18"]
[Round "9"]
[White "JunjiCol"]
[Black "vesalhamedinia"]
[Result "1-0"]
[WhiteElo "2362"]
[BlackElo "2485"]
[TimeControl "180+1"]
[EndTime "15:44:52 PDT"]
[Termination "JunjiCol won by resignation"]

1. e4 {[%clk 0:03:00.9]} 1... c5 {[%clk 0:02:59.6]} 2. Nf3 {[%clk 0:02:59]} 2...
Nc6 {[%clk 0:02:59.2]} 3. c3 {[%clk 0:02:57.9]} 3... d5 {[%clk 0:02:58.9]} 4.
exd5 {[%clk 0:02:57.5]} 4... Qxd5 {[%clk 0:02:59.8]} 5. Na3 {[%clk 0:02:56.7]}
5... Nf6 {[%clk 0:02:57.7]} 6. Nb5 {[%clk 0:02:55.7]} 6... Qd8 {[%clk
0:02:57.4]} 7. d4 {[%clk 0:02:55.7]} 7... cxd4 {[%clk 0:02:57.6]} 8. Nbxd4
{[%clk 0:02:55.1]} 8... Bd7 {[%clk 0:02:49.4]} 9. Bc4 {[%clk 0:02:52.3]} 9... e6
{[%clk 0:02:49.1]} 10. O-O {[%clk 0:02:50]} 10... Bc5 {[%clk 0:02:45.2]} 11. Bf4
{[%clk 0:02:45.5]} 11... a6 {[%clk 0:02:29.3]} 12. b4 {[%clk 0:02:43.6]} 12...
Bxd4 {[%clk 0:02:09.8]} 13. Nxd4 {[%clk 0:02:41.7]} 13... O-O {[%clk 0:02:05]}
14. Nb3 {[%clk 0:02:31.9]} 14... e5 {[%clk 0:01:48.5]} 15. Be3 {[%clk 0:02:31]}
15... b5 {[%clk 0:01:43]} 16. Be2 {[%clk 0:02:29.8]} 16... Be6 {[%clk
0:01:32.5]} 17. Nc5 {[%clk 0:02:29.6]} 17... Bd5 {[%clk 0:01:25.8]} 18. Bf3
{[%clk 0:02:27.9]} 18... e4 {[%clk 0:01:13.4]} 19. Be2 {[%clk 0:02:25.8]} 19...
Ne5 {[%clk 0:01:07.9]} 20. a4 {[%clk 0:02:25.4]} 20... Nc4 {[%clk 0:00:56]} 21.
Qc2 {[%clk 0:02:13.7]} 21... Nxe3 {[%clk 0:00:47.3]} 22. fxe3 {[%clk 0:02:14.6]}
22... Qb6 {[%clk 0:00:43.2]} 23. a5 {[%clk 0:01:59.2]} 23... Qd6 {[%clk
0:00:28]} 24. Rad1 {[%clk 0:01:58.6]} 24... Qe5 {[%clk 0:00:28.1]} 25. Rd4
{[%clk 0:01:57.4]} 25... Rfd8 {[%clk 0:00:19.9]} 26. Qd2 {[%clk 0:01:52.6]}
26... Rdc8 {[%clk 0:00:13.9]} 27. Rxf6 {[%clk 0:01:51.1]} 27... Qxf6 {[%clk
0:00:13.2]} 28. Rxd5 {[%clk 0:01:50.9]} 28... h6 {[%clk 0:00:13.5]} 29. Nxe4
{[%clk 0:01:50.8]} 29... Qe6 {[%clk 0:00:13.4]} 30. Nc5 {[%clk 0:01:50.4]} 30...
Qf6 {[%clk 0:00:12.2]} 31. Bf3 {[%clk 0:01:45.5]} 31... Rd8 {[%clk 0:00:11.3]}
32. Rd7 {[%clk 0:01:39.5]} 32... Rac8 {[%clk 0:00:09.6]} 33. Bb7 {[%clk
0:01:36.7]} 33... Rb8 {[%clk 0:00:07.4]} 34. Bxa6 {[%clk 0:01:34.2]} 34... Rxd7
{[%clk 0:00:04]} 35. Nxd7 {[%clk 0:01:33.9]} 35... Qd8 {[%clk 0:00:03.2]} 36.
Qd6 {[%clk 0:01:29.6]} 36... Ra8 {[%clk 0:00:03.8]} 37. Bb7 {[%clk 0:01:29.5]}
37... Ra7 {[%clk 0:00:03.5]} 38. Bc6 {[%clk 0:01:28.6]} 38... Qg5 {[%clk
0:00:03.2]} 39. Qb8+ {[%clk 0:01:25.3]} 39... Kh7 {[%clk 0:00:03.2]} 40. Nf8+
{[%clk 0:01:25.3]} 40... Kg8 {[%clk 0:00:03]} 41. Ne6+ {[%clk 0:01:25.9]} 1-0

[Event "Late-Titled-Tuesday-Blitz-June-18-2024"]
[Site "Chess.com"]
[Date "2024.06.18"]
[Round "9"]
[White "sammartin99"]
[Black "KamilaHryshchenko"]
[Result "1-0"]
[WhiteElo "2377"]
[BlackElo "2151"]
[TimeControl "180+1"]
[EndTime "15:44:55 PDT"]
[Termination "sammartin99 won on time"]

1. d4 {[%clk 0:03:00.9]} 1... g6 {[%clk 0:02:38.7]} 2. e4 {[%clk 0:02:58.8]}
2... Bg7 {[%clk 0:02:38.6]} 3. Nc3 {[%clk 0:02:59.3]} 3... d6 {[%clk 0:02:38.2]}
4. Bc4 {[%clk 0:02:58.2]} 4... c6 {[%clk 0:02:37.1]} 5. Nf3 {[%clk 0:02:55.1]}
5... Nd7 {[%clk 0:02:34.6]} 6. O-O {[%clk 0:02:53.1]} 6... Ngf6 {[%clk
0:02:34.2]} 7. e5 {[%clk 0:02:50.9]} 7... Nd5 {[%clk 0:02:05.4]} 8. exd6 {[%clk
0:02:46.2]} 8... Nxc3 {[%clk 0:02:00.5]} 9. bxc3 {[%clk 0:02:47]} 9... exd6
{[%clk 0:01:29.1]} 10. Re1+ {[%clk 0:02:46.6]} 10... Kf8 {[%clk 0:01:26.5]} 11.
Bf4 {[%clk 0:02:38.2]} 11... Nb6 {[%clk 0:01:22.8]} 12. Bb3 {[%clk 0:02:35.5]}
12... Bg4 {[%clk 0:01:18.3]} 13. h3 {[%clk 0:02:34]} 13... Bxf3 {[%clk
0:01:11.2]} 14. Qxf3 {[%clk 0:02:34.9]} 14... d5 {[%clk 0:01:10.7]} 15. a4
{[%clk 0:02:33.4]} 15... a5 {[%clk 0:01:09.3]} 16. Rab1 {[%clk 0:02:32]} 16...
h6 {[%clk 0:00:58.3]} 17. Qg3 {[%clk 0:02:32]} 17... Nc8 {[%clk 0:00:54.1]} 18.
c4 {[%clk 0:02:13.1]} 18... dxc4 {[%clk 0:00:31]} 19. Bxc4 {[%clk 0:02:12.9]}
19... Qxd4 {[%clk 0:00:24.7]} 20. Bd3 {[%clk 0:02:00.1]} 20... Kg8 {[%clk
0:00:19.9]} 21. Rxb7 {[%clk 0:01:59.2]} 21... Ra7 {[%clk 0:00:14]} 22. Rb8
{[%clk 0:01:59]} 22... Kh7 {[%clk 0:00:13.5]} 23. h4 {[%clk 0:01:56]} 23... Re7
{[%clk 0:00:12.7]} 24. Reb1 {[%clk 0:01:52.1]} 24... Na7 {[%clk 0:00:05.8]} 25.
h5 {[%clk 0:01:39.6]} 25... Qf6 {[%clk 0:00:02.4]} 26. hxg6+ {[%clk 0:01:36.9]}
26... fxg6 {[%clk 0:00:03.3]} 27. Rxh8+ {[%clk 0:01:12]} 27... Bxh8 {[%clk
0:00:03.4]} 28. Rb8 {[%clk 0:01:12.6]} 28... Bg7 {[%clk 0:00:03.3]} 29. Rd8
{[%clk 0:01:06.8]} 29... Bf8 {[%clk 0:00:02.7]} 30. Rxf8 {[%clk 0:00:51.7]}
30... Qxf8 {[%clk 0:00:02]} 31. Qxg6+ {[%clk 0:00:52.5]} 31... Kh8 {[%clk
0:00:01.4]} 32. Bxh6 {[%clk 0:00:53.2]} 1-0

[Event "Late-Titled-Tuesday-Blitz-June-18-2024"]
[Site "Chess.com"]
[Date "2024.06.18"]
[Round "9"]
[White "cristiano78"]
[Black "AlphaPerseii"]
[Result "1-0"]
[WhiteElo "2247"]
[BlackElo "2390"]
[TimeControl "180+1"]
[EndTime "15:44:55 PDT"]
[Termination "cristiano78 won by resignation"]

1. d4 {[%clk 0:03:00]} 1... Nf6 {[%clk 0:02:59.4]} 2. c4 {[%clk 0:03:00.2]} 2...
e6 {[%clk 0:02:59.8]} 3. Nf3 {[%clk 0:02:59.4]} 3... d5 {[%clk 0:02:57.7]} 4.
Nc3 {[%clk 0:02:59.2]} 4... a6 {[%clk 0:02:57]} 5. Bg5 {[%clk 0:02:58.5]} 5...
dxc4 {[%clk 0:02:45.6]} 6. e4 {[%clk 0:02:55.6]} 6... b5 {[%clk 0:02:17.3]} 7.
e5 {[%clk 0:02:52.5]} 7... h6 {[%clk 0:02:17.9]} 8. Bh4 {[%clk 0:02:52.4]} 8...
g5 {[%clk 0:02:18.4]} 9. exf6 {[%clk 0:02:44.5]} 9... gxh4 {[%clk 0:02:17.5]}
10. Ne5 {[%clk 0:02:44]} 10... Bb7 {[%clk 0:02:06]} 11. Nxf7 {[%clk 0:02:40.7]}
11... Qxf6 {[%clk 0:01:51.5]} 12. Ne5 {[%clk 0:02:37]} 12... h5 {[%clk
0:01:37.1]} 13. Be2 {[%clk 0:02:33.3]} 13... Qg5 {[%clk 0:01:26.2]} 14. Rg1
{[%clk 0:02:28.4]} 14... Bd6 {[%clk 0:01:10.3]} 15. Bf3 {[%clk 0:02:15.4]} 15...
Bxe5 {[%clk 0:00:40.5]} 16. Bxb7 {[%clk 0:02:13]} 16... Ra7 {[%clk 0:00:41.1]}
17. Bf3 {[%clk 0:02:05.7]} 17... Bd6 {[%clk 0:00:38.8]} 18. Ne4 {[%clk
0:02:04.6]} 18... Bb4+ {[%clk 0:00:39.1]} 19. Kf1 {[%clk 0:02:04.3]} 19... Qf5
{[%clk 0:00:36]} 20. a4 {[%clk 0:02:00.7]} 20... c6 {[%clk 0:00:33.8]} 21. axb5
{[%clk 0:01:55.9]} 21... cxb5 {[%clk 0:00:34.5]} 22. Bxh5+ {[%clk 0:01:46.5]}
22... Ke7 {[%clk 0:00:29.3]} 23. Bf3 {[%clk 0:01:43.8]} 23... Nc6 {[%clk
0:00:23.5]} 24. Nc3 {[%clk 0:01:32.2]} 24... Rc8 {[%clk 0:00:16.4]} 25. d5
{[%clk 0:01:31.4]} 25... Ne5 {[%clk 0:00:15.1]} 26. Be4 {[%clk 0:01:25.9]} 26...
Qf4 {[%clk 0:00:15.1]} 27. g3 {[%clk 0:01:23.8]} 27... Qf6 {[%clk 0:00:13.5]}
28. f4 {[%clk 0:01:20.2]} 28... Bxc3 {[%clk 0:00:08.6]} 29. bxc3 {[%clk
0:01:15.7]} 29... Rd8 {[%clk 0:00:08.1]} 30. Qd4 {[%clk 0:01:06.3]} 30... Nc6
{[%clk 0:00:02.9]} 31. Qxf6+ {[%clk 0:01:03.9]} 31... Kxf6 {[%clk 0:00:03.8]}
32. dxc6 {[%clk 0:01:03.6]} 32... Rd2 {[%clk 0:00:02.3]} 33. Rg2 {[%clk
0:01:01.6]} 33... Rxg2 {[%clk 0:00:01.3]} 34. Kxg2 {[%clk 0:01:01.5]} 1-0

[Event "Late-Titled-Tuesday-Blitz-June-18-2024"]
[Site "Chess.com"]
[Date "2024.06.18"]
[Round "9"]
[White "legendisback1"]
[Black "Flawless_Fighter"]
[Result "1-0"]
[WhiteElo "3003"]
[BlackElo "2789"]
[TimeControl "180+1"]
[EndTime "15:44:57 PDT"]
[Termination "legendisback1 won by resignation"]

1. c4 {[%clk 0:02:53.7]} 1... e6 {[%clk 0:02:59.6]} 2. Nf3 {[%clk 0:02:52.6]}
2... d5 {[%clk 0:03:00.5]} 3. e3 {[%clk 0:02:53.5]} 3... Nf6 {[%clk 0:03:00.7]}
4. Nc3 {[%clk 0:02:53.4]} 4... c5 {[%clk 0:02:59.6]} 5. cxd5 {[%clk 0:02:52.7]}
5... exd5 {[%clk 0:03:00.1]} 6. d4 {[%clk 0:02:53.1]} 6... Nc6 {[%clk
0:03:00.8]} 7. Be2 {[%clk 0:02:50.1]} 7... c4 {[%clk 0:02:59]} 8. b3 {[%clk
0:02:49.2]} 8... Bb4 {[%clk 0:02:56.1]} 9. Bd2 {[%clk 0:02:47.2]} 9... Bxc3
{[%clk 0:02:42.2]} 10. Bxc3 {[%clk 0:02:48.1]} 10... b5 {[%clk 0:02:42.7]} 11.
O-O {[%clk 0:02:01.2]} 11... O-O {[%clk 0:02:38.2]} 12. Ne5 {[%clk 0:01:57.6]}
12... Bb7 {[%clk 0:02:23.8]} 13. a4 {[%clk 0:01:53.7]} 13... a6 {[%clk
0:02:22.9]} 14. f3 {[%clk 0:01:50.6]} 14... Qd6 {[%clk 0:02:17.7]} 15. bxc4
{[%clk 0:01:46]} 15... bxc4 {[%clk 0:02:01.1]} 16. Rb1 {[%clk 0:01:44.1]} 16...
Rfb8 {[%clk 0:01:59.4]} 17. Qd2 {[%clk 0:01:43.1]} 17... a5 {[%clk 0:01:56.1]}
18. Rb6 {[%clk 0:01:39.4]} 18... Qc7 {[%clk 0:01:53]} 19. Rfb1 {[%clk
0:01:38.1]} 19... Nb4 {[%clk 0:01:50.1]} 20. Rb5 {[%clk 0:01:34.5]} 20... Bc6
{[%clk 0:01:13.1]} 21. Nxc6 {[%clk 0:01:31.2]} 21... Nxc6 {[%clk 0:00:55.9]} 22.
Rxb8+ {[%clk 0:01:29]} 22... Rxb8 {[%clk 0:00:55.6]} 23. Rb5 {[%clk 0:01:29.9]}
23... h6 {[%clk 0:00:49.2]} 24. Bxa5 {[%clk 0:01:27.1]} 24... Nxa5 {[%clk
0:00:45.7]} 25. Qxa5 {[%clk 0:01:28]} 25... Qxa5 {[%clk 0:00:43.2]} 26. Rxa5
{[%clk 0:01:28.9]} 26... Rb1+ {[%clk 0:00:32.7]} 27. Kf2 {[%clk 0:01:25.2]}
27... Ra1 {[%clk 0:00:26.5]} 28. Ra8+ {[%clk 0:01:22.1]} 28... Kh7 {[%clk
0:00:26.6]} 29. a5 {[%clk 0:01:23]} 29... Nd7 {[%clk 0:00:22.7]} 30. e4 {[%clk
0:01:09.9]} 30... dxe4 {[%clk 0:00:19.6]} 31. Bxc4 {[%clk 0:01:07.4]} 31... exf3
{[%clk 0:00:16.3]} 32. gxf3 {[%clk 0:01:07]} 32... Nb6 {[%clk 0:00:09.8]} 33.
Bd3+ {[%clk 0:01:06.1]} 33... g6 {[%clk 0:00:10.5]} 34. Ra7 {[%clk 0:01:04.5]}
34... Nd5 {[%clk 0:00:08.9]} 35. Rxf7+ {[%clk 0:01:04.1]} 35... Kg8 {[%clk
0:00:09.6]} 36. Rd7 {[%clk 0:01:03.6]} 36... Nf4 {[%clk 0:00:08.7]} 37. Bc4+
{[%clk 0:01:02.7]} 37... Kf8 {[%clk 0:00:09.4]} 38. Rf7+ {[%clk 0:01:02.5]} 1-0

[Event "Late-Titled-Tuesday-Blitz-June-18-2024"]
[Site "Chess.com"]
[Date "2024.06.18"]
[Round "9"]
[White "manitodeplomo"]
[Black "patzer-reloaded"]
[Result "1-0"]
[WhiteElo "2655"]
[BlackElo "2455"]
[TimeControl "180+1"]
[EndTime "15:45:06 PDT"]
[Termination "manitodeplomo won by checkmate"]

1. d4 {[%clk 0:03:00.9]} 1... Nf6 {[%clk 0:02:58.5]} 2. c4 {[%clk 0:03:00.9]}
2... e6 {[%clk 0:02:59.4]} 3. Nf3 {[%clk 0:03:00.3]} 3... d5 {[%clk 0:02:58.5]}
4. Nc3 {[%clk 0:02:59.2]} 4... Bb4 {[%clk 0:02:57.4]} 5. Qa4+ {[%clk 0:02:58.4]}
5... Nc6 {[%clk 0:02:57]} 6. e3 {[%clk 0:02:58.6]} 6... O-O {[%clk 0:02:56.5]}
7. Bd2 {[%clk 0:02:57.4]} 7... a6 {[%clk 0:02:55.5]} 8. h3 {[%clk 0:02:51.3]}
8... h6 {[%clk 0:02:53]} 9. Rd1 {[%clk 0:02:49]} 9... Bxc3 {[%clk 0:02:31.4]}
10. Bxc3 {[%clk 0:02:46.2]} 10... Ne4 {[%clk 0:02:31.9]} 11. Qc2 {[%clk
0:02:44.4]} 11... Qe7 {[%clk 0:02:04.5]} 12. a3 {[%clk 0:02:41.5]} 12... b6
{[%clk 0:01:54.5]} 13. Bd3 {[%clk 0:02:37.7]} 13... Nxc3 {[%clk 0:01:52.7]} 14.
Qxc3 {[%clk 0:02:36.4]} 14... dxc4 {[%clk 0:01:49.4]} 15. Bxc4 {[%clk
0:02:31.3]} 15... Bb7 {[%clk 0:01:49.1]} 16. O-O {[%clk 0:02:30.7]} 16... Rfd8
{[%clk 0:01:15.9]} 17. b4 {[%clk 0:02:27.3]} 17... Rac8 {[%clk 0:00:41.1]} 18.
Ba2 {[%clk 0:02:11]} 18... Nb8 {[%clk 0:00:39.5]} 19. Ne5 {[%clk 0:02:02.5]}
19... Nd7 {[%clk 0:00:24.6]} 20. Nc6 {[%clk 0:01:58.3]} 20... Bxc6 {[%clk
0:00:23.9]} 21. Qxc6 {[%clk 0:01:57.6]} 21... a5 {[%clk 0:00:21.9]} 22. Rb1
{[%clk 0:01:49.8]} 22... axb4 {[%clk 0:00:20.6]} 23. axb4 {[%clk 0:01:50.7]}
23... Qd6 {[%clk 0:00:19.6]} 24. Rfc1 {[%clk 0:01:48.6]} 24... Qxc6 {[%clk
0:00:17.6]} 25. Rxc6 {[%clk 0:01:47.8]} 25... Nb8 {[%clk 0:00:18.5]} 26. Rc3
{[%clk 0:01:44.2]} 26... c6 {[%clk 0:00:19.4]} 27. Rbc1 {[%clk 0:01:42.5]} 27...
b5 {[%clk 0:00:15.4]} 28. Bb1 {[%clk 0:01:41.2]} 28... Rc7 {[%clk 0:00:14.4]}
29. Be4 {[%clk 0:01:40.8]} 29... Ra7 {[%clk 0:00:14.9]} 30. Bxc6 {[%clk
0:01:38.6]} 30... Nxc6 {[%clk 0:00:15.8]} 31. Rxc6 {[%clk 0:01:38.6]} 31... Ra4
{[%clk 0:00:15.1]} 32. Rb1 {[%clk 0:01:30.9]} 32... Rb8 {[%clk 0:00:13.2]} 33.
Rc5 {[%clk 0:01:27.4]} 33... g5 {[%clk 0:00:11.3]} 34. g4 {[%clk 0:01:26.5]}
34... Kg7 {[%clk 0:00:11]} 35. Kg2 {[%clk 0:01:26.8]} 35... Kg6 {[%clk 0:00:08]}
36. Kg3 {[%clk 0:01:26.8]} 36... Rb6 {[%clk 0:00:06.8]} 37. h4 {[%clk
0:01:26.4]} 37... gxh4+ {[%clk 0:00:06.5]} 38. Kxh4 {[%clk 0:01:26]} 38... Rb8
{[%clk 0:00:06.9]} 39. Kg3 {[%clk 0:01:25.2]} 39... Kg7 {[%clk 0:00:07]} 40. f4
{[%clk 0:01:20.3]} 40... Kg6 {[%clk 0:00:07]} 41. Kf3 {[%clk 0:01:18.4]} 41...
Kf6 {[%clk 0:00:06.5]} 42. Rh1 {[%clk 0:01:17.1]} 42... Kg7 {[%clk 0:00:06.3]}
43. Rch5 {[%clk 0:01:15.6]} 43... Rxb4 {[%clk 0:00:04.7]} 44. Rxh6 {[%clk
0:01:16]} 44... Rb6 {[%clk 0:00:03.3]} 45. g5 {[%clk 0:01:15.2]} 45... Rb3
{[%clk 0:00:02.7]} 46. Rh7+ {[%clk 0:01:15.2]} 46... Kg6 {[%clk 0:00:02.6]} 47.
R1h6+ {[%clk 0:01:14.6]} 47... Kf5 {[%clk 0:00:02.6]} 48. Rf6# {[%clk
0:01:14.6]} 1-0

[Event "Late-Titled-Tuesday-Blitz-June-18-2024"]
[Site "Chess.com"]
[Date "2024.06.18"]
[Round "9"]
[White "enriquebutti"]
[Black "Beaterawn"]
[Result "0-1"]
[WhiteElo "2109"]
[BlackElo "2374"]
[TimeControl "180+1"]
[EndTime "15:45:06 PDT"]
[Termination "Beaterawn won by resignation"]

1. Nf3 {[%clk 0:03:00.4]} 1... f5 {[%clk 0:02:55.9]} 2. d4 {[%clk 0:02:59.3]}
2... Nf6 {[%clk 0:02:55.8]} 3. g3 {[%clk 0:02:58.9]} 3... g6 {[%clk 0:02:52.4]}
4. Bg2 {[%clk 0:02:58.4]} 4... Bg7 {[%clk 0:02:52.9]} 5. O-O {[%clk 0:02:58.6]}
5... O-O {[%clk 0:02:53.6]} 6. c4 {[%clk 0:02:58.1]} 6... c6 {[%clk 0:02:53.2]}
7. Nc3 {[%clk 0:02:55.9]} 7... d6 {[%clk 0:02:52.1]} 8. b3 {[%clk 0:02:52.4]}
8... a5 {[%clk 0:02:50.3]} 9. Ba3 {[%clk 0:02:49.9]} 9... Na6 {[%clk 0:02:46.3]}
10. Rc1 {[%clk 0:02:35.8]} 10... Nc7 {[%clk 0:02:45.7]} 11. d5 {[%clk
0:02:32.7]} 11... Rb8 {[%clk 0:02:31.4]} 12. dxc6 {[%clk 0:02:28.1]} 12... bxc6
{[%clk 0:02:31.6]} 13. Nd4 {[%clk 0:02:27.6]} 13... Bb7 {[%clk 0:02:31.5]} 14.
Nxc6 {[%clk 0:02:25.9]} 14... Bxc6 {[%clk 0:02:31.6]} 15. Bxc6 {[%clk
0:02:25.6]} 15... e5 {[%clk 0:02:31.5]} 16. Bxd6 {[%clk 0:02:22.3]} 16... Rf7
{[%clk 0:02:28.7]} 17. Bxe5 {[%clk 0:02:17.6]} 17... Qxd1 {[%clk 0:02:22.4]} 18.
Rfxd1 {[%clk 0:02:14.8]} 18... Ng4 {[%clk 0:02:22.6]} 19. Bxg7 {[%clk
0:02:08.4]} 19... Kxg7 {[%clk 0:02:22.3]} 20. Nd5 {[%clk 0:02:05.1]} 20... Ne6
{[%clk 0:02:21.4]} 21. Nf4 {[%clk 0:01:59.3]} 21... Nxf4 {[%clk 0:02:16.7]} 22.
gxf4 {[%clk 0:01:58.9]} 22... Rc8 {[%clk 0:02:13.9]} 23. Bd5 {[%clk 0:01:58.1]}
23... Re7 {[%clk 0:02:12.7]} 24. e3 {[%clk 0:01:57.2]} 24... h5 {[%clk
0:02:10.1]} 25. c5 {[%clk 0:01:55.9]} 25... h4 {[%clk 0:02:09.6]} 26. c6 {[%clk
0:01:48.2]} 26... Kf6 {[%clk 0:02:08.6]} 27. h3 {[%clk 0:01:46]} 27... Nh6
{[%clk 0:02:07.4]} 28. Bf3 {[%clk 0:01:43.3]} 28... Nf7 {[%clk 0:02:05.4]} 29.
Rc4 {[%clk 0:01:39.4]} 29... g5 {[%clk 0:02:05.5]} 30. Bh5 {[%clk 0:01:33]}
30... gxf4 {[%clk 0:02:03.9]} 31. exf4 {[%clk 0:01:26]} 31... Re6 {[%clk
0:01:52]} 32. Bxf7 {[%clk 0:01:12]} 32... Kxf7 {[%clk 0:01:52.9]} 33. Rd7+
{[%clk 0:01:09.2]} 33... Ke8 {[%clk 0:01:53]} 34. Ra7 {[%clk 0:01:05.1]} 34...
Rcxc6 {[%clk 0:01:47.1]} 35. Rxc6 {[%clk 0:01:04.5]} 35... Rxc6 {[%clk 0:01:48]}
36. Rxa5 {[%clk 0:01:04.1]} 36... Rc2 {[%clk 0:01:46]} 37. b4 {[%clk 0:01:00.3]}
37... Rc4 {[%clk 0:01:45]} 38. b5 {[%clk 0:00:57.7]} 38... Rxf4 {[%clk
0:01:44.2]} 39. a4 {[%clk 0:00:56]} 39... Kd7 {[%clk 0:01:41.6]} 40. Ra7+ {[%clk
0:00:50.1]} 40... Kc8 {[%clk 0:01:41.6]} 41. b6 {[%clk 0:00:48.7]} 41... Kb8
{[%clk 0:01:39.8]} 42. a5 {[%clk 0:00:48]} 42... Ra4 {[%clk 0:01:40.1]} 43. Kf1
{[%clk 0:00:46.4]} 43... f4 {[%clk 0:01:40]} 44. Ke2 {[%clk 0:00:46]} 44... Ra3
{[%clk 0:01:40.7]} 45. Kd2 {[%clk 0:00:44.4]} 45... Ra2+ {[%clk 0:01:38]} 46.
Kc3 {[%clk 0:00:42.8]} 46... Rxf2 {[%clk 0:01:34.2]} 47. a6 {[%clk 0:00:40.8]}
47... Ra2 {[%clk 0:01:30.4]} 48. Kb3 {[%clk 0:00:39.7]} 48... Ra1 {[%clk
0:01:26.6]} 49. Kc4 {[%clk 0:00:35.4]} 49... f3 {[%clk 0:01:25.9]} 50. Kb5
{[%clk 0:00:35]} 50... f2 {[%clk 0:01:13.4]} 0-1

[Event "Late-Titled-Tuesday-Blitz-June-18-2024"]
[Site "Chess.com"]
[Date "2024.06.18"]
[Round "9"]
[White "slidingknight2775"]
[Black "BardArtem"]
[Result "0-1"]
[WhiteElo "2711"]
[BlackElo "2866"]
[TimeControl "180+1"]
[EndTime "15:45:07 PDT"]
[Termination "BardArtem won by checkmate"]

1. d4 {[%clk 0:03:00.9]} 1... d5 {[%clk 0:02:59]} 2. c4 {[%clk 0:03:01.2]} 2...
e6 {[%clk 0:02:58.7]} 3. Nf3 {[%clk 0:03:01.7]} 3... Nf6 {[%clk 0:02:58.2]} 4.
g3 {[%clk 0:03:02.2]} 4... Bd6 {[%clk 0:02:54.4]} 5. Bg2 {[%clk 0:03:02.2]} 5...
O-O {[%clk 0:02:54.9]} 6. O-O {[%clk 0:03:02.8]} 6... h6 {[%clk 0:02:55.6]} 7.
Qc2 {[%clk 0:03:02.2]} 7... Nc6 {[%clk 0:02:54.4]} 8. a3 {[%clk 0:03:02.4]} 8...
Re8 {[%clk 0:02:53.5]} 9. Nbd2 {[%clk 0:03:02.1]} 9... dxc4 {[%clk 0:02:45.1]}
10. Nxc4 {[%clk 0:03:02.1]} 10... Bf8 {[%clk 0:02:40.9]} 11. b4 {[%clk
0:03:00.3]} 11... a5 {[%clk 0:02:30]} 12. b5 {[%clk 0:02:54.3]} 12... Nxd4
{[%clk 0:02:30.1]} 13. Nxd4 {[%clk 0:02:55.1]} 13... Qxd4 {[%clk 0:02:30.7]} 14.
Bb2 {[%clk 0:02:54.9]} 14... Qc5 {[%clk 0:02:26]} 15. Bxf6 {[%clk 0:02:31]}
15... gxf6 {[%clk 0:02:26.9]} 16. a4 {[%clk 0:02:27.4]} 16... e5 {[%clk
0:02:14.9]} 17. Rac1 {[%clk 0:02:21.8]} 17... Rd8 {[%clk 0:01:48.9]} 18. e3
{[%clk 0:02:03.3]} 18... c6 {[%clk 0:01:30.4]} 19. Qb1 {[%clk 0:01:23.3]} 19...
cxb5 {[%clk 0:01:20.9]} 20. Nxa5 {[%clk 0:01:22.9]} 20... Qa7 {[%clk 0:00:59.1]}
21. Nxb7 {[%clk 0:00:55]} 21... Bxb7 {[%clk 0:00:56.2]} 22. Rc7 {[%clk
0:00:55.6]} 22... Rab8 {[%clk 0:00:46.7]} 23. Qxb5 {[%clk 0:00:06]} 23... Bxg2
{[%clk 0:00:45.1]} 24. Rxa7 {[%clk 0:00:06.6]} 24... Rxb5 {[%clk 0:00:45]} 25.
Kxg2 {[%clk 0:00:04.4]} 25... Rb2 {[%clk 0:00:45.1]} 26. Rc1 {[%clk 0:00:04.1]}
26... Rdd2 {[%clk 0:00:42.6]} 27. Rcc7 {[%clk 0:00:02.3]} 27... Rxf2+ {[%clk
0:00:42.4]} 28. Kh3 {[%clk 0:00:02.5]} 28... f5 {[%clk 0:00:35.2]} 29. Rxf7
{[%clk 0:00:01]} 29... Rxh2# {[%clk 0:00:35.3]} 0-1

[Event "Late-Titled-Tuesday-Blitz-June-18-2024"]
[Site "Chess.com"]
[Date "2024.06.18"]
[Round "9"]
[White "Chessdreamer2020"]
[Black "Andrii_Prydun"]
[Result "1-0"]
[WhiteElo "2552"]
[BlackElo "2362"]
[TimeControl "180+1"]
[EndTime "15:45:09 PDT"]
[Termination "Chessdreamer2020 won on time"]

1. e4 {[%clk 0:02:58.5]} 1... c5 {[%clk 0:02:55.5]} 2. Nf3 {[%clk 0:02:58.2]}
2... d6 {[%clk 0:02:55.2]} 3. d4 {[%clk 0:02:56.6]} 3... cxd4 {[%clk 0:02:56.1]}
4. Qxd4 {[%clk 0:02:57]} 4... Nc6 {[%clk 0:02:14.8]} 5. Qe3 {[%clk 0:02:56.3]}
5... d5 {[%clk 0:02:09.3]} 6. exd5 {[%clk 0:02:53.6]} 6... Qxd5 {[%clk
0:02:10.2]} 7. Nc3 {[%clk 0:02:52.9]} 7... Qa5 {[%clk 0:01:24.4]} 8. Bb5 {[%clk
0:02:40]} 8... Bd7 {[%clk 0:01:01.8]} 9. O-O {[%clk 0:02:38.1]} 9... Nf6 {[%clk
0:00:51.1]} 10. Bd2 {[%clk 0:02:36.1]} 10... Qc7 {[%clk 0:00:49.7]} 11. Rfe1
{[%clk 0:01:42.2]} 11... e6 {[%clk 0:00:44.5]} 12. Rad1 {[%clk 0:01:41.7]} 12...
Be7 {[%clk 0:00:42.9]} 13. a3 {[%clk 0:01:37.9]} 13... O-O {[%clk 0:00:40.4]}
14. Ng5 {[%clk 0:01:33.5]} 14... Rad8 {[%clk 0:00:27.5]} 15. Qh3 {[%clk
0:01:29.2]} 15... h6 {[%clk 0:00:06.2]} 16. Nge4 {[%clk 0:01:27.7]} 16... Nxe4
{[%clk 0:00:04.7]} 17. Nxe4 {[%clk 0:01:28.6]} 17... Ne5 {[%clk 0:00:04.6]} 18.
Bxd7 {[%clk 0:01:17.7]} 18... Nxd7 {[%clk 0:00:05.5]} 19. Bc3 {[%clk 0:01:16.6]}
19... Nc5 {[%clk 0:00:02.1]} 20. Ng3 {[%clk 0:01:07.4]} 20... f6 {[%clk
0:00:01.6]} 21. b4 {[%clk 0:01:03.3]} 21... Na4 {[%clk 0:00:01.9]} 22. Qxe6+
{[%clk 0:01:03.2]} 22... Rf7 {[%clk 0:00:01.2]} 23. Ba1 {[%clk 0:00:51.5]} 23...
Rxd1 {[%clk 0:00:02.1]} 24. Rxd1 {[%clk 0:00:51.5]} 24... Qxc2 {[%clk
0:00:02.8]} 25. Re1 {[%clk 0:00:48.2]} 25... Nb6 {[%clk 0:00:01]} 26. Nf5 {[%clk
0:00:48.1]} 26... Qc4 {[%clk 0:00:01]} 27. Nxe7+ {[%clk 0:00:47.2]} 27... Kf8
{[%clk 0:00:01.4]} 28. Ng6+ {[%clk 0:00:46.9]} 28... Kg8 {[%clk 0:00:01.9]} 29.
Qe8+ {[%clk 0:00:46.9]} 29... Kh7 {[%clk 0:00:02.3]} 30. Nf8+ {[%clk 0:00:47]}
30... Kg8 {[%clk 0:00:02]} 31. Ne6+ {[%clk 0:00:47]} 1-0